bitfinex/quotes_BTCUSD_20251021
["timestamp","ask_amount","ask_price","bid_price","bid_amount"]
[1761060700829,8.02568726,113500.0,113490.0,0.245]
[1761060701057,7.48420014,113500.0,113490.0,0.245]
[1761060701257,8.02568726,113500.0,113490.0,0.245]
[1761060701621,8.14424726,113500.0,113490.0,1e-08]
[1761060701947,3.21242478,113480.0,113470.0,1e-08]
[1761060702216,4.05210992,113480.0,113470.0,1e-08]
[1761060702829,4.39210992,113480.0,113470.0,1e-08]
[1761060702965,4.39372643,113480.0,113470.0,1e-08]
[1761060703166,0.55245585,113460.0,113450.0,0.49932801]
[1761060703371,1.30224198,113460.0,113450.0,0.49784671]
[1761060703707,4.53329244,113460.0,113450.0,0.49784671]
[1761060703911,4.55346591,113460.0,113450.0,0.49784671]
[1761060704816,3.87074734,113460.0,113450.0,0.49784671]
[1761060704995,4.4636469,113460.0,113450.0,0.49784671]
[1761060705605,0.62626605,113460.0,113450.0,0.49784671]
[1761060705775,0.74474605,113460.0,113450.0,0.49784671]
[1761060705966,4.42746462,113460.0,113450.0,0.49784671]
[1761060706174,4.42846462,113460.0,113450.0,0.49784671]
[1761060706385,4.4646469,113460.0,113450.0,0.49784671]
[1761060706588,0.78192833,113460.0,113450.0,0.49784671]
[1761060706794,0.74570605,113460.0,113450.0,0.49784671]
[1761060707001,4.4646069,113460.0,113450.0,0.49784671]
[1761060707210,4.55442591,113460.0,113450.0,0.49784671]
[1761060707432,4.55542591,113460.0,113450.0,0.49784671]
[1761060707649,4.55342591,113460.0,113450.0,0.49784671]
[1761060708091,4.55442591,113460.0,113450.0,0.49784671]
[1761060708297,4.55442591,113460.0,113450.0,0.07903059]
[1761060708505,0.21247139,113450.0,113440.0,0.00201461]
[1761060708664,4.07132935,113450.0,113440.0,0.00216043]
[1761060709480,4.06718669,113450.0,113440.0,0.00216043]
[1761060709699,4.10336897,113450.0,113440.0,0.00216043]
[1761060710372,4.44336897,113450.0,113440.0,0.00216043]
[1761060710931,4.44498548,113450.0,113440.0,0.00216043]
[1761060711133,3.6422904,113450.0,113440.0,0.00216043]
[1761060711313,4.53310798,113450.0,113440.0,0.00216043]
[1761060711525,3.73310941,113450.0,113440.0,0.00216043]
[1761060711756,4.53410798,113450.0,113440.0,0.00216043]
[1761060712736,3.85238941,113450.0,113440.0,0.00216043]
[1761060712938,3.85138941,113450.0,113440.0,0.00216043]
[1761060713128,4.53510798,113450.0,113440.0,0.00216043]
[1761060713967,4.53672449,113450.0,113440.0,0.00216043]
[1761060714759,4.53510798,113450.0,113440.0,0.00216043]
[1761060714956,4.53672449,113450.0,113440.0,0.00216043]
[1761060715650,4.53502798,113450.0,113440.0,0.00216043]
[1761060715851,4.53664449,113450.0,113440.0,0.00216043]
[1761060716051,4.53664449,113450.0,113440.0,1e-08]
[1761060716472,3.85392592,113450.0,113440.0,1e-08]
[1761060717035,4.74508331,113450.0,113440.0,1e-08]
[1761060717239,4.64753963,113450.0,113440.0,1e-08]
[1761060717359,4.62861449,113450.0,113440.0,1e-08]
[1761060717568,4.53648449,113450.0,113440.0,1e-08]
[1761060717971,3.3032904,113450.0,113440.0,1e-08]
[1761060718177,3.38514812,113450.0,113440.0,1e-08]
[1761060718376,3.38614812,113450.0,113440.0,1e-08]
[1761060718814,4.10504897,113450.0,113440.0,1e-08]
[1761060719025,4.10404897,113450.0,113440.0,1e-08]
[1761060719242,3.7613304,113450.0,113440.0,1e-08]
[1761060719426,4.44604897,113450.0,113440.0,1e-08]
[1761060719632,3.6442904,113450.0,113440.0,1e-08]
[1761060719954,3.7632904,113450.0,113440.0,1e-08]
[1761060720158,3.6452904,113450.0,113440.0,1e-08]
[1761060720446,4.55527551,113450.0,113440.0,1e-08]
[1761060720652,4.64840551,113450.0,113440.0,1e-08]
[1761060720810,4.6584055,113450.0,113440.0,1e-08]
[1761060721252,4.5394455,113450.0,113440.0,1e-08]
[1761060721416,3.87171694,113450.0,113440.0,1e-08]
[1761060721618,4.2924432,113450.0,113440.0,1e-08]
[1761060721820,3.9524432,113450.0,113440.0,1e-08]
[1761060722155,0.20897901,113450.0,113440.0,1e-08]
[1761060722357,0.38726812,113450.0,113440.0,1e-08]
[1761060722798,0.38726812,113450.0,113440.0,0.86740671]
[1761060722799,0.09281901,113450.0,113440.0,0.86740671]
[1761060723129,0.09281901,113450.0,113440.0,0.8774067]
[1761060723130,0.003,113450.0,113440.0,0.8774067]
[1761060723329,0.002,113450.0,113440.0,0.19468813]
[1761060723529,0.001,113450.0,113440.0,0.8774067]
[1761060723739,4.61990898,113500.0,113440.0,0.8774067]
[1761060723740,3.93719041,113500.0,113470.0,0.17625443]
[1761060723949,3.93719041,113500.0,113470.0,0.18363791]
[1761060723950,0.26604771,113490.0,113470.0,0.18363791]
[1761060724161,0.08981901,113490.0,113480.0,0.1762425]
[1761060724342,0.26604599,113490.0,113470.0,0.1936379]
[1761060724581,0.28629552,113490.0,113470.0,0.18363791]
[1761060724783,0.11006854,113490.0,113480.0,0.1762425]
[1761060724989,0.28629552,113490.0,113480.0,0.1762425]
[1761060725199,0.28629552,113490.0,113470.0,0.01838347]
[1761060725401,0.1762425,113480.0,113470.0,0.18478739]
[1761060725609,0.08981901,113480.0,113470.0,0.18478739]
[1761060726188,0.08981901,113480.0,113470.0,0.18578739]
[1761060726534,0.08981901,113480.0,113470.0,0.87750595]
[1761060726728,0.08981901,113480.0,113470.0,0.19578738]
[1761060727157,0.08981901,113480.0,113470.0,0.18578739]
[1761060727354,0.08981901,113480.0,113470.0,0.18678739]
[1761060727970,0.08981901,113480.0,113470.0,0.87850595]
[1761060728676,3.75216839,113500.0,113490.0,0.19461045]
[1761060728930,4.10801786,113500.0,113490.0,0.00838348]
[1761060729166,0.17622698,113490.0,113480.0,0.00838348]
[1761060729371,0.26604599,113490.0,113480.0,0.00838348]
[1761060729572,0.26604599,113490.0,113480.0,0.18462598]
[1761060729772,0.26604599,113490.0,113480.0,0.00838348]
[1761060730087,0.26604599,113490.0,113480.0,0.18462598]
[1761060730291,0.26604599,113490.0,113480.0,0.86734455]
[1761060730605,3.77203456,113500.0,113490.0,0.18461046]
[1761060730816,4.05699858,113500.0,113490.0,0.18461046]
[1761060731017,4.05699858,113500.0,113490.0,0.00838348]
[1761060731139,4.14681759,113500.0,113490.0,0.18461046]
[1761060731343,4.05699858,113500.0,113490.0,0.00838348]
[1761060731548,4.05699858,113500.0,113490.0,0.00828237]
[1761060732359,0.1762425,113480.0,113470.0,0.12638824]
[1761060732625,0.17624062,113490.0,113470.0,0.30436378]
[1761060732830,0.1762425,113480.0,113470.0,0.31264615]
[1761060733256,0.26605963,113490.0,113470.0,0.31264615]
[1761060733457,0.26605963,113490.0,113480.0,0.00828237]
[1761060733776,0.1762425,113480.0,113470.0,0.31364607]
[1761060733971,0.31029172,113480.0,113470.0,0.00942824]
[1761060734172,0.65029172,113480.0,113470.0,0.00014587]
[1761060734395,0.65029172,113480.0,113470.0,1e-08]
[1761060734396,4.50597696,113480.0,113470.0,1e-08]
[1761060735224,4.50769458,113480.0,113470.0,1e-08]
[1761060735423,3.82497601,113480.0,113470.0,1e-08]
[1761060735798,4.50769458,113480.0,113470.0,1e-08]
[1761060736920,4.50969458,113480.0,113470.0,1e-08]
[1761060737120,4.51169458,113480.0,113470.0,1e-08]
[1761060737322,0.17632019,113430.0,113420.0,0.00818151]
[1761060737472,0.17632019,113430.0,113420.0,0.00832747]
[1761060737473,0.2661392,113430.0,113420.0,0.00832747]
[1761060737887,0.2661392,113430.0,113420.0,0.00898527]
[1761060738087,0.31266885,113430.0,113420.0,0.00080376]
[1761060738356,0.2661392,113430.0,113420.0,0.00080376]
[1761060740184,0.28642883,113430.0,113420.0,0.00080376]
[1761060740575,0.17627691,113460.0,113440.0,0.17630127]
[1761060740776,0.17627691,113460.0,113450.0,0.00818151]
[1761060740938,0.19662887,113460.0,113450.0,0.18447062]
[1761060741152,0.1762638,113470.0,113450.0,0.19447061]
[1761060741341,0.17625804,113470.0,113460.0,0.17627357]
[1761060741571,0.05,113480.0,113470.0,0.17625804]
[1761060741955,0.2262425,113480.0,113470.0,0.17625804]
[1761060742123,0.2262425,113480.0,113470.0,0.17525804]
[1761060742324,0.13981901,113480.0,113470.0,0.18343955]
[1761060742530,0.33605062,113480.0,113470.0,0.18358551]
[1761060742779,0.33605062,113480.0,113470.0,0.00832747]
[1761060742780,0.35669471,113480.0,113470.0,0.00832747]
[1761060742986,0.17625804,113470.0,113460.0,0.12536747]
[1761060743133,0.17628911,113450.0,113440.0,0.00818151]
[1761060743329,0.26610812,113450.0,113440.0,0.0083275]
[1761060743735,1.29840639,113480.0,113450.0,0.00999999]
[1761060743736,0.25504373,113480.0,113450.0,0.00999999]
[1761060743963,0.26607705,113470.0,113450.0,0.00818151]
[1761060744181,0.17627357,113460.0,113440.0,0.3026296]
[1761060744386,0.08981901,113450.0,113440.0,0.31262959]
[1761060745238,0.002,113470.0,113460.0,0.18445508]
[1761060745440,0.09081901,113470.0,113460.0,0.18445508]
[1761060745652,0.28215786,113470.0,113460.0,0.00818151]
[1761060745839,0.17627357,113460.0,113450.0,0.17628911]
[1761060746165,0.26609258,113460.0,113450.0,0.18447062]
[1761060746522,0.17625804,113470.0,113450.0,0.18447062]
[1761060746724,0.26607705,113470.0,113450.0,0.19447061]
[1761060746971,0.26607705,113470.0,113460.0,0.18445508]
[1761060747349,0.08981901,113470.0,113460.0,0.30241508]
[1761060747754,0.26607705,113470.0,113460.0,0.30241508]
[1761060748383,0.26607705,113470.0,113460.0,0.12614151]
[1761060748599,0.26607705,113470.0,113460.0,0.30241508]
[1761060749011,0.08981901,113470.0,113460.0,0.30241508]
[1761060749462,0.08981901,113470.0,113460.0,0.12614151]
[1761060749621,0.26607705,113470.0,113460.0,0.12614151]
[1761060749823,0.26607705,113470.0,113460.0,0.30241508]
[1761060750550,0.31730792,113470.0,113460.0,0.00818151]
[1761060750764,0.31730792,113470.0,113440.0,0.30243215]
[1761060750765,0.17628911,113450.0,113440.0,0.30243215]
[1761060750972,0.26610812,113450.0,113440.0,0.30243215]
[1761060752538,0.08981901,113450.0,113440.0,0.30243215]
[1761060752747,0.26610812,113450.0,113440.0,0.30243215]
[1761060752950,0.18507094,113470.0,113450.0,0.18446059]
[1761060753171,0.08981901,113460.0,113450.0,0.19446058]
[1761060753389,0.17626255,113470.0,113460.0,0.17626439]
[1761060753771,0.26608156,113470.0,113460.0,0.12582151]
[1761060753963,0.26607705,113470.0,113460.0,0.30209508]
[1761060754182,0.26607705,113470.0,113460.0,0.12582151]
[1761060754576,0.26607705,113470.0,113460.0,0.30209508]
[1761060755349,0.26607705,113470.0,113460.0,0.12582151]
[1761060757215,0.94879562,113470.0,113460.0,0.00818151]
[1761060757449,0.28506892,113470.0,113460.0,0.00818151]
[1761060757737,0.26607705,113470.0,113460.0,0.00818151]
[1761060758432,0.29874879,113470.0,113460.0,0.00818151]
[1761060758669,0.17627357,113460.0,113450.0,0.12562151]
[1761060758850,0.17628911,113450.0,113440.0,0.0083275]
[1761060759083,0.26610812,113450.0,113440.0,0.1257275]
[1761060760115,0.26610812,113450.0,113440.0,0.13672749]
[1761060760296,0.26610812,113450.0,113440.0,0.11854599]
[1761060760516,0.31034629,113450.0,113440.0,0.00114599]
[1761060760887,0.99303171,113450.0,113440.0,0.00214599]
[1761060761089,0.32934714,113450.0,113440.0,0.00214599]
[1761060761473,0.44670714,113450.0,113440.0,0.00114599]
[1761060761670,0.98871801,113450.0,113440.0,0.00114599]
[1761060761879,0.98871801,113450.0,113440.0,0.00014599]
[1761060762082,4.24754029,113450.0,113440.0,0.00014599]
[1761060762293,4.24754029,113450.0,113440.0,0.00114599]
[1761060762938,4.24754029,113450.0,113440.0,0.00014599]
[1761060763356,4.21235801,113450.0,113440.0,0.00014599]
[1761060763557,0.62610897,113450.0,113440.0,0.00014599]
[1761060763763,1.28547984,113450.0,113440.0,0.00014599]
[1761060763991,4.28547984,113450.0,113440.0,0.00014599]
[1761060764194,4.28647984,113450.0,113440.0,0.00014599]
[1761060764440,1.28647984,113450.0,113440.0,0.00014599]
[1761060764655,4.41248113,113450.0,113440.0,0.00014599]
[1761060764841,4.41148113,113450.0,113440.0,0.00014599]
[1761060765144,4.31144113,113450.0,113440.0,0.00014599]
[1761060765378,1.27521885,113450.0,113440.0,0.00014599]
[1761060765730,4.27517885,113450.0,113440.0,0.00014599]
[1761060765934,4.31317961,113450.0,113440.0,1e-08]
[1761060766248,4.31136113,113450.0,113440.0,1e-08]
[1761060766477,0.26248692,113440.0,113430.0,0.00032887]
[1761060766599,3.91346448,113440.0,113430.0,0.00032887]
[1761060766997,0.17635129,113410.0,113400.0,0.00818151]
[1761060767256,0.17636684,113400.0,113390.0,0.11724]
[1761060767456,0.26618585,113400.0,113390.0,0.12542151]
[1761060767927,0.80819672,113400.0,113390.0,0.11724]
[1761060768102,0.26618585,113400.0,113390.0,0.11724]
[1761060768306,0.17639724,113390.0,113380.0,0.00818151]
[1761060768541,0.26621625,113390.0,113380.0,0.11716]
[1761060768713,0.26621625,113390.0,113380.0,0.12534151]
[1761060768940,0.80822712,113390.0,113380.0,0.12534151]
[1761060769145,0.26621625,113390.0,113380.0,0.11716]
[1761060770059,0.26621625,113390.0,113370.0,0.11748]
[1761060770060,0.17639795,113380.0,113370.0,0.11748]
[1761060770271,0.26621696,113380.0,113370.0,0.11748]
[1761060770485,0.26621696,113380.0,113370.0,0.12566151]
[1761060770659,0.26621696,113380.0,113370.0,0.11748]
[1761060770892,0.26621696,113380.0,113370.0,0.12566151]
[1761060771277,0.26621696,113380.0,113370.0,0.11748]
[1761060771423,0.26621696,113380.0,113370.0,0.12566151]
[1761060772043,0.26621696,113380.0,113370.0,0.11748]
[1761060772245,0.89804684,113380.0,113370.0,0.11748]
[1761060772444,0.80822783,113380.0,113370.0,0.11748]
[1761060772648,0.26621696,113380.0,113370.0,0.0004]
[1761060772867,4.14822783,113380.0,113370.0,0.0004]
[1761060773134,4.18441011,113380.0,113370.0,1e-08]
[1761060773342,4.18441011,113380.0,113370.0,0.00197436]
[1761060773550,4.30141011,113380.0,113370.0,0.00197436]
[1761060773762,4.38819673,113380.0,113370.0,0.00197436]
[1761060773967,4.30145011,113380.0,113370.0,0.00197436]
[1761060774174,4.18441011,113380.0,113370.0,0.00197436]
[1761060774415,0.60621696,113380.0,113370.0,0.00197436]
[1761060774823,0.80822783,113380.0,113370.0,0.01015587]
[1761060776546,0.26721696,113380.0,113370.0,0.00197436]
[1761060776749,0.26721696,113380.0,113370.0,0.12707587]
[1761060777281,1.23904684,113380.0,113370.0,0.00197436]
[1761060777448,1.14922783,113380.0,113370.0,0.00197436]
[1761060777772,1.14922783,113380.0,113370.0,0.00187986]
[1761060778190,4.14922783,113380.0,113370.0,0.00155586]
[1761060778415,4.18541011,113380.0,113370.0,1e-08]
[1761060778606,0.17644464,113350.0,113340.0,0.00723152]
[1761060778808,0.26626365,113350.0,113340.0,0.00723152]
[1761060779124,0.26626365,113350.0,113340.0,0.00767922]
[1761060779125,0.80827452,113350.0,113340.0,0.00767922]
[1761060779313,0.26626365,113350.0,113340.0,0.00767922]
[1761060779538,0.26626365,113350.0,113340.0,0.00700422]
[1761060779923,0.26641029,113350.0,113340.0,0.00659922]
[1761060780163,0.80842116,113350.0,113340.0,0.12351922]
[1761060780421,0.80842116,113350.0,113340.0,0.12451922]
[1761060780792,4.39134245,113350.0,113340.0,0.001]
[1761060780803,4.9901223,113350.0,113340.0,0.001]
[1761060781136,4.9901223,113350.0,113340.0,1e-08]
[1761060781137,5.00012229,113350.0,113340.0,1e-08]
[1761060781363,3.74241157,113350.0,113340.0,1e-08]
[1761060781567,0.60641029,113350.0,113340.0,1e-08]
[1761060781781,0.83680565,113350.0,113340.0,1e-08]
[1761060782022,0.83680565,113350.0,113330.0,0.17647444]
[1761060782243,0.08981901,113340.0,113330.0,0.18647443]
[1761060782432,0.08996565,113350.0,113340.0,0.30346019]
[1761060782637,0.26641029,113350.0,113340.0,0.30346019]
[1761060782761,0.09096565,113350.0,113340.0,0.30346019]
[1761060782969,0.26741029,113350.0,113340.0,0.30346019]
[1761060783191,0.08996565,113350.0,113340.0,0.30346019]
[1761060783818,0.26641029,113350.0,113340.0,0.30346019]
[1761060785195,0.00014664,113350.0,113340.0,0.30346019]
[1761060785406,0.00014664,113350.0,113340.0,0.87385555]
[1761060785878,0.00014664,113350.0,113340.0,0.96367456]
[1761060786532,0.00014664,113350.0,113340.0,1.30367456]
[1761060786920,0.00014664,113350.0,113340.0,1.30467456]
[1761060787128,0.00014664,113350.0,113340.0,1.30567456]
[1761060787386,0.00014664,113350.0,113340.0,1.30367456]
[1761060787801,0.00014664,113350.0,113340.0,0.3952792]
[1761060787929,0.00014664,113350.0,113340.0,0.30546019]
[1761060788368,0.00014664,113350.0,113340.0,0.87585555]
[1761060788576,0.00014664,113350.0,113340.0,0.96567456]
[1761060788809,4.596e-05,113350.0,113340.0,0.96567456]
[1761060789020,4.596e-05,113350.0,113340.0,0.96767456]
[1761060789444,4.596e-05,113350.0,113340.0,0.96567456]
[1761060789661,4.596e-05,113350.0,113340.0,0.96367456]
[1761060789860,4.596e-05,113350.0,113340.0,0.96467456]
[1761060790079,4.596e-05,113350.0,113340.0,0.96567456]
[1761060790287,4.596e-05,113350.0,113340.0,0.96555456]
[1761060790909,4.596e-05,113350.0,113340.0,0.3951592]
[1761060791110,4.596e-05,113350.0,113340.0,0.96555456]
[1761060791332,4.596e-05,113350.0,113340.0,0.3951592]
[1761060791722,4.596e-05,113350.0,113340.0,0.96555456]
[1761060791922,4.596e-05,113350.0,113340.0,0.3951592]
[1761060792159,4.596e-05,113350.0,113340.0,0.30534019]
[1761060793007,4.596e-05,113350.0,113340.0,0.87573555]
[1761060793219,4.596e-05,113350.0,113340.0,0.96555456]
[1761060793434,4.596e-05,113350.0,113340.0,1.30555456]
[1761060794059,4.596e-05,113350.0,113340.0,1.9121322]
[1761060794270,4.596e-05,113350.0,113340.0,1.94972104]
[1761060794483,4.596e-05,113350.0,113340.0,1.93213219]
[1761060794924,4.596e-05,113350.0,113340.0,0.66446147]
[1761060795159,4.596e-05,113350.0,113340.0,1.13867457]
[1761060795359,4.596e-05,113350.0,113340.0,1.25455457]
[1761060795645,4.596e-05,113350.0,113340.0,1.25655457]
[1761060795858,4.596e-05,113350.0,113340.0,1.25555457]
[1761060796069,4.596e-05,113350.0,113340.0,1.25755457]
[1761060797163,4.596e-05,113350.0,113340.0,1.25555457]
[1761060797580,4.596e-05,113350.0,113340.0,1.25455457]
[1761060797805,4.596e-05,113350.0,113340.0,1.25555457]
[1761060798925,4.596e-05,113350.0,113340.0,1.25455457]
[1761060799120,4.596e-05,113350.0,113340.0,1.25555457]
[1761060799932,4.596e-05,113350.0,113340.0,0.91555457]
[1761060800388,4.596e-05,113350.0,113340.0,0.34515921]
[1761060800602,4.596e-05,113350.0,113340.0,0.91555457]
[1761060800811,4.596e-05,113350.0,113340.0,0.34515921]
[1761060801014,4.596e-05,113350.0,113340.0,0.2553402]
[1761060801228,4.596e-05,113350.0,113340.0,0.01199999]
[1761060801229,0.1764906,113350.0,113340.0,0.01199999]
[1761060801437,0.91898562,113350.0,113340.0,0.12883999]
[1761060801667,0.91898562,113350.0,113340.0,0.11884]
[1761060801878,1.17670497,113350.0,113340.0,0.11884]
[1761060802110,1.17670497,113350.0,113340.0,0.11784]
[1761060802323,1.17670497,113350.0,113340.0,0.001]
[1761060802532,0.1764602,113340.0,113330.0,0.1171693]
[1761060802756,0.08981901,113340.0,113330.0,0.29364507]
[1761060802970,0.1764906,113350.0,113340.0,0.1764602]
[1761060803173,0.26630961,113350.0,113340.0,0.1764602]
[1761060803390,4.596e-05,113350.0,113340.0,0.18646019]
[1761060803823,0.1764906,113350.0,113340.0,0.00999999]
[1761060804488,0.26630961,113350.0,113340.0,0.00999999]
[1761060804745,0.1764602,113340.0,113330.0,0.01032929]
[1761060804957,0.1764602,113340.0,113330.0,0.12720929]
[1761060805169,0.1764602,113340.0,113330.0,0.30368506]
[1761060806552,0.83667457,113340.0,113330.0,0.1172093]
[1761060807870,0.85657274,113340.0,113330.0,0.0003293]
[1761060808045,0.85657274,113340.0,113330.0,0.1172093]
[1761060808256,1.28639175,113340.0,113330.0,0.0003293]
[1761060808652,4.32257403,113340.0,113330.0,0.0003293]
[1761060809688,3.55265805,113330.0,113320.0,0.0004]
[1761060809956,4.32975242,113330.0,113320.0,0.0004]
[1761060810142,4.41957143,113330.0,113320.0,1e-08]
[1761060810796,4.29357014,113330.0,113320.0,1e-08]
[1761060810997,3.72317478,113330.0,113320.0,1e-08]
[1761060811189,3.62630619,113330.0,113320.0,1e-08]
[1761060811397,4.19670155,113330.0,113320.0,1e-08]
[1761060812817,1.19670155,113330.0,113320.0,1e-08]
[1761060813014,1.17769014,113330.0,113320.0,1e-08]
[1761060813226,1.17869014,113330.0,113320.0,1e-08]
[1761060813648,0.60829478,113330.0,113320.0,1e-08]
[1761060813848,4.23385421,113330.0,113320.0,1e-08]
[1761060814453,4.21487242,113330.0,113320.0,1e-08]
[1761060814659,4.30469143,113330.0,113320.0,1e-08]
[1761060815157,0.26829478,113330.0,113320.0,1e-08]
[1761060815523,0.26829478,113330.0,113320.0,0.17682071]
[1761060815762,0.09181901,113330.0,113320.0,0.17682071]
[1761060815999,0.26829478,113330.0,113320.0,0.29370071]
[1761060816468,0.26729478,113330.0,113320.0,0.11720936]
[1761060816718,0.26629478,113330.0,113320.0,0.29370071]
[1761060816908,0.17647577,113330.0,113320.0,0.12720935]
[1761060817049,0.83669014,113330.0,113320.0,0.11720936]
[1761060818025,1.21287242,113330.0,113320.0,0.00032936]
[1761060818233,1.17669014,113330.0,113320.0,0.00032936]
[1761060818611,4.17669014,113330.0,113320.0,0.00032936]
[1761060819382,1.17669014,113330.0,113320.0,0.00032936]
[1761060821976,0.26629478,113330.0,113320.0,0.00032936]
[1761060822183,0.08981901,113330.0,113320.0,0.00032936]
[1761060822387,0.26629478,113330.0,113320.0,0.1868207]
[1761060822589,0.17647577,113330.0,113320.0,0.1868207]
[1761060822785,0.17647577,113330.0,113320.0,0.01032935]
[1761060822985,0.17647577,113330.0,113320.0,0.1868207]
[1761060824182,0.17647577,113330.0,113320.0,0.01032935]
[1761060824385,0.97198361,113330.0,113320.0,0.01032935]
[1761060824798,0.97198361,113330.0,113320.0,0.00032936]
[1761060824993,0.97198361,113330.0,113320.0,0.01032935]
[1761060825196,0.26629478,113330.0,113320.0,0.01032935]
[1761060826106,0.26629478,113330.0,113320.0,0.1868207]
[1761060826306,0.26629478,113330.0,113320.0,0.01032935]
[1761060826482,0.26629478,113330.0,113320.0,0.00032936]
[1761060826483,1.06180262,113330.0,113320.0,0.00032936]
[1761060826900,0.26629478,113330.0,113320.0,0.00032936]
[1761060827111,0.26629478,113330.0,113320.0,0.12720935]
[1761060828728,0.26629478,113330.0,113320.0,0.3037007]
[1761060828934,0.26629478,113330.0,113320.0,0.12720935]
[1761060832538,0.26107723,113330.0,113320.0,0.12720935]
[1761060832744,0.35989817,113340.0,113330.0,0.18647576]
[1761060832890,0.62617738,113340.0,113330.0,0.18647576]
[1761060833094,0.19635837,113340.0,113330.0,0.18647576]
[1761060833903,0.19635837,113340.0,113330.0,0.00999999]
[1761060834312,0.19635837,113340.0,113330.0,0.18647576]
[1761060835387,4.596e-05,113350.0,113340.0,0.1764602]
[1761060835600,0.1764906,113350.0,113340.0,0.30334019]
[1761060837507,0.1764602,113340.0,113330.0,0.00999999]
[1761060837698,0.1764602,113340.0,113330.0,0.30335576]
[1761060839251,0.1764602,113340.0,113330.0,0.12687999]
[1761060839780,0.1764602,113340.0,113330.0,0.30335576]
[1761060840422,1.31199873,113350.0,113330.0,0.30335576]
[1761060840597,1.31199873,113350.0,113340.0,0.1764602]
[1761060840598,4.596e-05,113350.0,113340.0,0.1764602]
[1761060840811,4.596e-05,113350.0,113340.0,0.20410621]
[1761060841011,4.596e-05,113350.0,113340.0,0.18646019]
[1761060841672,0.1764906,113350.0,113340.0,0.30330019]
[1761060841874,0.97199844,113350.0,113340.0,0.12683999]
[1761060842118,0.08986497,113350.0,113340.0,0.12683999]
[1761060842346,0.1764906,113350.0,113340.0,0.30330019]
[1761060842607,0.1764906,113350.0,113340.0,0.12683999]
[1761060842822,0.88217943,113350.0,113340.0,0.12683999]
[1761060843029,0.1764906,113350.0,113340.0,0.12683999]
[1761060843449,0.1764906,113350.0,113340.0,0.30330019]
[1761060843886,0.1764906,113350.0,113340.0,0.12683999]
[1761060844733,0.1764906,113350.0,113340.0,0.11684]
[1761060844734,0.97199844,113350.0,113340.0,0.11684]
[1761060845578,0.26630961,113350.0,113340.0,0.11684]
[1761060846238,0.97199844,113350.0,113340.0,0.11684]
[1761060846693,0.26630961,113350.0,113340.0,0.11684]
[1761060847796,0.08986497,113350.0,113340.0,0.30330019]
[1761060848020,4.596e-05,113350.0,113340.0,0.30330019]
[1761060851213,4.596e-05,113350.0,113340.0,0.12683999]
[1761060851418,0.1764906,113350.0,113340.0,0.30330019]
[1761060852627,0.1764906,113350.0,113340.0,0.12683999]
[1761060852837,0.1764906,113350.0,113340.0,0.30330019]
[1761060853038,0.17647577,113330.0,113320.0,0.01032935]
[1761060853213,0.17647577,113330.0,113320.0,0.3036207]
[1761060853400,0.17647424,113340.0,113320.0,0.3036207]
[1761060853808,0.17647424,113340.0,113330.0,0.17647577]
[1761060854423,0.1764602,113340.0,113330.0,0.17647577]
[1761060854723,0.1764602,113340.0,113320.0,0.3046207]
[1761060854923,0.1764602,113340.0,113320.0,0.3036207]
[1761060855107,0.17647577,113330.0,113320.0,0.3036207]
[1761060855489,0.1764602,113340.0,113320.0,0.3036207]
[1761060856402,0.17647577,113330.0,113320.0,0.3036207]
[1761060856547,0.1764602,113340.0,113330.0,0.17647577]
[1761060857173,0.1764602,113340.0,113330.0,0.00999999]
[1761060857563,0.1764602,113340.0,113330.0,0.18647576]
[1761060857766,0.1764602,113340.0,113330.0,0.00999999]
[1761060859467,0.17647577,113330.0,113320.0,0.11712936]
[1761060859668,0.17647577,113330.0,113320.0,0.3036207]
[1761060860567,0.17647577,113330.0,113320.0,0.12712935]
[1761060861079,5.17647577,113330.0,113320.0,0.12712935]
[1761060861232,5.17647577,113330.0,113320.0,0.3036207]
[1761060861434,5.17647577,113330.0,113320.0,0.12712935]
[1761060861839,5.26629478,113330.0,113320.0,0.01032935]
[1761060862082,6.31198361,113330.0,113320.0,0.12708935]
[1761060862236,6.31198361,113330.0,113320.0,0.11708936]
[1761060863053,6.31198361,113330.0,113320.0,0.00032936]
[1761060863835,6.34816589,113330.0,113320.0,0.00032936]
[1761060865355,6.3672135,113330.0,113320.0,0.00032936]
[1761060865569,6.45703251,113330.0,113320.0,0.00032936]
[1761060866145,6.4379849,113330.0,113320.0,0.00032936]
[1761060866379,6.4570306,113330.0,113320.0,0.00032936]
[1761060866822,9.36721159,113330.0,113320.0,0.00032936]
[1761060868285,9.33102931,113330.0,113320.0,0.00032936]
[1761060868494,9.36721159,113330.0,113320.0,0.00032936]
[1761060868731,9.41459966,113330.0,113320.0,1e-08]
[1761060868956,9.51541866,113330.0,113320.0,1e-08]
[1761060869170,9.46803059,113330.0,113320.0,1e-08]
[1761060869631,9.51541866,113330.0,113320.0,1e-08]
[1761060870189,9.46803059,113330.0,113320.0,1e-08]
[1761060870909,9.46903059,113330.0,113320.0,1e-08]
[1761060871557,9.53025983,113330.0,113320.0,1e-08]
[1761060871790,9.48287176,113330.0,113320.0,1e-08]
[1761060872040,9.57260663,113330.0,113320.0,1e-08]
[1761060872249,0.17658484,113260.0,113250.0,0.06059999]
[1761060872484,0.26640385,113260.0,113250.0,0.06059999]
[1761060873123,1.3300719,113260.0,113250.0,0.0504]
[1761060873265,1.36125418,113260.0,113250.0,0.0504]
[1761060873621,0.73622866,113260.0,113250.0,0.0454]
[1761060873814,1.32515749,113260.0,113250.0,0.0474]
[1761060874235,1.32515749,113260.0,113250.0,0.0494]
[1761060874618,1.32515749,113260.0,113250.0,0.0474]
[1761060875001,1.32515749,113260.0,113250.0,0.0454]
[1761060875204,1.45215878,113260.0,113250.0,0.0454]
[1761060875427,0.65665094,113260.0,113250.0,0.0454]
[1761060875604,1.36233977,113260.0,113250.0,0.0454]
[1761060876811,1.36133977,113260.0,113250.0,0.0454]
[1761060877783,1.36133977,113260.0,113250.0,0.04770696]
[1761060879132,4.36133977,113260.0,113250.0,0.04770696]
[1761060879385,4.45115878,113260.0,113250.0,0.04770696]
[1761060879857,0.10788382,113260.0,113250.0,0.04770696]
[1761060880106,0.10788382,113260.0,113250.0,0.23430739]
[1761060880315,0.10888382,113260.0,113250.0,0.23430739]
[1761060880567,0.28546866,113260.0,113250.0,0.05770695]
[1761060880796,0.28546866,113260.0,113250.0,0.23430739]
[1761060881084,0.00208559,113260.0,113250.0,0.23430739]
[1761060883391,8.559e-05,113260.0,113250.0,0.80504987]
[1761060883728,8.559e-05,113260.0,113250.0,0.89486888]
[1761060884885,8.559e-05,113260.0,113250.0,0.89586888]
[1761060885050,8.559e-05,113260.0,113250.0,0.89686888]
[1761060885456,8.559e-05,113260.0,113250.0,0.89586888]
[1761060885675,8.559e-05,113260.0,113250.0,0.89686888]
[1761060886897,8.559e-05,113260.0,113250.0,0.3261264]
[1761060887104,8.559e-05,113260.0,113250.0,0.89686888]
[1761060887503,8.559e-05,113260.0,113250.0,0.23630739]
[1761060887704,8.559e-05,113260.0,113250.0,0.80704987]
[1761060888386,8.559e-05,113260.0,113250.0,0.23630739]
[1761060888729,0.17667043,113260.0,113250.0,0.23630739]